bitfinex-derivatives/quotes_BTCF0:USTF0_20250629
["timestamp","ask_amount","ask_price","bid_price","bid_amount"]
[1751204221661,2.66802529,108110.0,108100.0,0.00449982]
[1751204223759,0.1849525,108100.0,108090.0,0.10665471]
[1751204223963,1.51654239,108100.0,108090.0,0.07435471]
[1751204224163,0.1849696,108090.0,108080.0,0.16518695]
[1751204224364,1.75376286,108090.0,108080.0,0.17964726]
[1751204225067,1.75376286,108090.0,108080.0,0.1941083]
[1751204225364,1.75376286,108090.0,108080.0,0.17964799]
[1751204225952,1.76304691,108090.0,108080.0,0.17964799]
[1751204226160,1.76304691,108090.0,108080.0,0.36463469]
[1751204226570,1.76404691,108090.0,108080.0,0.17964799]
[1751204226870,1.76404691,108090.0,108080.0,0.12427583]
[1751204227072,1.76604691,108090.0,108080.0,0.12427583]
[1751204227569,1.76604691,108090.0,108080.0,0.19846903]
[1751204228371,1.76604691,108090.0,108080.0,0.38345573]
[1751204231866,1.11885365,108090.0,108080.0,0.38345573]
[1751204232066,1.76604691,108090.0,108080.0,0.38345573]
[1751204232671,1.11885365,108090.0,108080.0,0.38345573]
[1751204232872,1.76604691,108090.0,108080.0,0.38345573]
[1751204233265,0.3638,108090.0,108080.0,0.38345573]
[1751204233567,0.32659663,108090.0,108080.0,1.67703911]
[1751204234176,0.32659663,108090.0,108080.0,1.80615911]
[1751204234363,0.51156623,108090.0,108080.0,1.80615911]
[1751204234771,0.51156623,108090.0,108080.0,1.99119911]
[1751204235272,0.51156623,108090.0,108080.0,1.74119911]
[1751204236270,0.51156623,108090.0,108080.0,1.75975648]
[1751204236974,0.51156623,108090.0,108080.0,1.30703985]
[1751204237175,0.51156623,108090.0,108080.0,1.43615985]
[1751204238177,0.51156623,108090.0,108080.0,1.41763908]
[1751204239070,0.51156623,108090.0,108080.0,1.28851908]
[1751204239781,0.51163105,108090.0,108080.0,1.28851908]
[1751204241775,0.51163105,108090.0,108080.0,1.10347908]
[1751204245777,0.51163105,108090.0,108080.0,1.04807032]
[1751204246175,0.51163105,108090.0,108080.0,1.10348923]
[1751204246779,0.51163105,108090.0,108080.0,1.28852923]
[1751204247678,0.1879696,108090.0,108080.0,1.28852923]
[1751204247873,0.51163105,108090.0,108080.0,1.28852923]
[1751204249078,0.1879696,108090.0,108080.0,1.28852923]
[1751204249472,0.1849525,108100.0,108090.0,0.2774478]
[1751204249674,0.1849525,108100.0,108090.0,1.07620482]
[1751204249874,0.1849525,108100.0,108090.0,1.26122882]
[1751204250087,0.50861395,108100.0,108090.0,1.39034882]
[1751204250579,0.51061395,108100.0,108090.0,1.39034882]
[1751204250776,0.51061395,108100.0,108090.0,1.20532482]
[1751204251280,0.1869525,108100.0,108090.0,1.20532482]
[1751204251480,0.002,108100.0,108090.0,1.71401027]
[1751204251872,0.002,108100.0,108090.0,1.73252502]
[1751204252081,0.002,108100.0,108090.0,1.71806398]
[1751204252384,0.002,108100.0,108090.0,1.39440253]
[1751204252576,0.1869525,108100.0,108090.0,1.39440253]
[1751204252980,0.51061395,108100.0,108090.0,1.39440253]
[1751204254783,0.51061395,108100.0,108090.0,1.20937853]
[1751204254984,0.51061395,108100.0,108090.0,1.42690253]
[1751204255187,0.1869525,108100.0,108090.0,1.42690253]
[1751204256085,0.1869525,108100.0,108090.0,1.352973]
[1751204257879,0.002,108100.0,108090.0,1.352973]
[1751204258783,0.002,108100.0,108090.0,1.40836364]
[1751204259481,0.002,108100.0,108090.0,1.352973]
[1751204260983,0.1869525,108100.0,108090.0,1.352973]
[1751204261790,0.1869525,108100.0,108090.0,1.67652568]
[1751204261791,0.51050518,108100.0,108090.0,1.67652568]
[1751204263297,0.51050518,108100.0,108090.0,1.75045521]
[1751204263791,0.1869525,108100.0,108090.0,1.75045521]
[1751204263991,0.51050518,108100.0,108090.0,1.75045521]
[1751204266800,0.51050518,108100.0,108090.0,1.56543121]
[1751204267597,0.32555268,108100.0,108090.0,1.56543121]
[1751204268296,0.51050518,108100.0,108090.0,1.56543121]
[1751204270993,0.32555268,108100.0,108090.0,1.56543121]
[1751204271196,0.51050518,108100.0,108090.0,1.56543121]
[1751204275296,0.32555268,108100.0,108090.0,1.49150168]
[1751204276502,0.51050518,108100.0,108090.0,1.49150168]
[1751204277308,0.51050518,108100.0,108090.0,1.56543121]
[1751204278403,0.32555268,108100.0,108090.0,1.56543121]
[1751204279505,0.002,108100.0,108090.0,1.56543121]
[1751204279704,0.54028808,108110.0,108100.0,0.1849525]
[1751204280009,0.56127571,108110.0,108100.0,0.67435398]
[1751204280807,0.56327571,108110.0,108100.0,0.67435398]
[1751204281105,0.59607571,108110.0,108100.0,0.58566588]
[1751204281606,0.59607571,108110.0,108100.0,0.2621132]
[1751204282309,0.57508808,108110.0,108100.0,0.2621132]
[1751204283104,0.57708808,108110.0,108100.0,0.2631132]
[1751204284208,0.57708808,108110.0,108100.0,0.58666588]
[1751204284407,0.57708808,108110.0,108100.0,0.66059541]
[1751204285402,0.57708808,108110.0,108100.0,0.33704273]
[1751204285706,0.61018808,108110.0,108100.0,0.30674273]
[1751204286108,0.61018808,108110.0,108100.0,0.27434273]
[1751204286604,0.2866354,108110.0,108100.0,0.27434273]
[1751204286809,0.61018808,108110.0,108100.0,0.27434273]
[1751204287208,0.61018808,108110.0,108100.0,0.2004132]
[1751204287811,0.61018808,108110.0,108100.0,0.20967831]
[1751204289412,0.61018808,108110.0,108100.0,0.2004132]
[1751204290212,0.61018808,108110.0,108100.0,0.7600532]
[1751204291715,0.61018808,108110.0,108100.0,0.83398273]
[1751204291918,0.61018808,108110.0,108100.0,0.84313612]
[1751204292721,0.63118999,108110.0,108100.0,0.82468927]
[1751204293017,0.63118999,108110.0,108100.0,1.17974195]
[1751204294111,0.63118999,108110.0,108100.0,0.85618927]
[1751204294312,0.63118999,108110.0,108100.0,1.17974195]
[1751204297819,0.30763731,108110.0,108100.0,1.17974195]
[1751204298007,0.61018808,108110.0,108100.0,1.1981888]
[1751204298213,0.61018808,108110.0,108100.0,1.2609888]
[1751204303319,0.61018808,108110.0,108100.0,0.7013488]
[1751204303521,0.61018808,108110.0,108100.0,1.2606288]
[1751204303721,0.61018808,108110.0,108100.0,0.7013488]
[1751204304027,0.61018808,108110.0,108100.0,1.2606288]
[1751204304723,0.61018808,108110.0,108100.0,0.37779612]
[1751204304926,0.61018808,108110.0,108100.0,1.2606288]
[1751204307428,0.004,108110.0,108100.0,1.58418148]
[1751204307726,0.99434958,108120.0,108110.0,0.1849354]
[1751204307928,1.33903014,108120.0,108110.0,0.61094643]
[1751204308126,1.37083014,108120.0,108110.0,0.61094643]
[1751204308425,1.34970226,108120.0,108110.0,0.61094643]
[1751204309226,1.03014958,108120.0,108110.0,0.61194643]
[1751204309527,1.03314958,108120.0,108110.0,0.61194643]
[1751204310134,1.02914958,108120.0,108110.0,0.61094643]
[1751204310332,1.03114958,108120.0,108110.0,0.61194643]
[1751204311133,1.02814958,108120.0,108110.0,0.61294643]
[1751204316040,0.66734958,108120.0,108110.0,0.61294643]
[1751204316240,1.02814958,108120.0,108110.0,0.61294643]
[1751204321642,0.66734958,108120.0,108110.0,0.61294643]
[1751204321842,1.02814958,108120.0,108110.0,0.61294643]
[1751204322648,0.66734958,108120.0,108110.0,0.61294643]
[1751204322841,1.02814958,108120.0,108110.0,0.61294643]
[1751204325154,0.98191628,108120.0,108110.0,0.61294643]
[1751204325342,0.98191628,108120.0,108110.0,0.64992226]
[1751204325848,0.98191628,108120.0,108110.0,0.61294643]
[1751204327248,0.6889636,108120.0,108110.0,0.61294643]
[1751204327549,1.33606896,108120.0,108110.0,0.28939375]
[1751204327752,1.33606896,108120.0,108110.0,0.61294643]
[1751204330353,1.01251628,108120.0,108110.0,0.61294643]
[1751204331248,1.33606896,108120.0,108110.0,0.61294643]
[1751204335251,1.33606896,108120.0,108110.0,0.55744878]
[1751204335852,1.33606896,108120.0,108110.0,0.61292316]
[1751204339958,1.28983886,108120.0,108110.0,0.61292316]
[1751204341761,0.96628618,108120.0,108110.0,0.61292316]
[1751204343164,0.60548618,108120.0,108110.0,0.61292316]
[1751204343361,0.96628618,108120.0,108110.0,0.61292316]
[1751204343762,0.96628618,108120.0,108110.0,0.67672316]
[1751204345665,0.96628618,108120.0,108110.0,0.62124878]
[1751204347866,0.96628618,108120.0,108110.0,0.2976961]
[1751204348066,0.96628618,108120.0,108110.0,0.62124878]
[1751204348563,0.96628618,108120.0,108110.0,0.69517831]
[1751204348766,0.96628618,108120.0,108110.0,0.62124878]
[1751204350966,0.96628618,108120.0,108110.0,0.67676078]
[1751204351668,1.28983886,108120.0,108110.0,0.64566078]
[1751204351968,1.28983886,108120.0,108110.0,0.61296078]
[1751204352168,1.28983886,108120.0,108110.0,0.2569081]
[1751204356372,1.65063886,108120.0,108110.0,0.2569081]
[1751204357873,1.65063886,108120.0,108110.0,0.29390029]
[1751204361373,2.10259154,108120.0,108110.0,0.0719727]
[1751204361577,2.53758354,108120.0,108110.0,0.10896083]
[1751204361776,2.53758354,108120.0,108110.0,0.05344883]
[1751204362079,2.53758354,108120.0,108110.0,0.03898813]
[1751204362272,2.53758354,108120.0,108110.0,0.002]
[1751204362776,2.28758354,108120.0,108110.0,0.002]
[1751204367982,2.66175154,108120.0,108110.0,0.002]
[1751204368483,2.33819886,108120.0,108110.0,0.002]
[1751204368683,2.66175154,108120.0,108110.0,0.002]
[1751204369587,2.66175154,108120.0,108110.0,0.01602011]
[1751204369892,1.65063886,108120.0,108110.0,0.20095541]
[1751204370182,2.33823886,108120.0,108110.0,0.20095541]
[1751204370879,1.65063886,108120.0,108110.0,0.20095541]
[1751204371183,1.82384618,108120.0,108110.0,0.54068798]
[1751204371384,2.14739886,108120.0,108110.0,0.2631929]
[1751204371786,2.14739886,108120.0,108110.0,0.2962929]
[1751204372389,2.14739886,108120.0,108110.0,0.33328103]
[1751204373988,2.14739886,108120.0,108110.0,0.38879303]
[1751204378792,2.11479886,108120.0,108110.0,0.38879303]
[1751204379293,2.11479886,108120.0,108110.0,0.71234571]
[1751204379787,2.11479886,108120.0,108110.0,0.38879303]
[1751204382186,1.55563886,108120.0,108110.0,0.38879303]
[1751204382491,1.23208618,108120.0,108110.0,0.67535758]
[1751204385282,0.7236,108120.0,108110.0,0.67535758]
[1751204385495,0.5919386,108130.0,108120.0,0.1849182]
[1751204385684,0.5919386,108130.0,108120.0,1.01851244]
[1751204385890,0.91549128,108130.0,108120.0,0.70941497]
[1751204386285,0.91549128,108130.0,108120.0,0.67245942]
[1751204386887,0.91749128,108130.0,108120.0,0.67345942]
[1751204388189,0.91749128,108130.0,108120.0,0.71038821]
[1751204388492,0.92049128,108130.0,108120.0,0.71138821]
[1751204388692,0.92049128,108130.0,108120.0,0.7207097]
[1751204389892,0.5969386,108130.0,108120.0,0.72052468]
[1751204390090,0.3658,108130.0,108120.0,0.72052468]
[1751204390393,0.005,108130.0,108120.0,1.04439589]
[1751204391996,0.005,108130.0,108120.0,0.98896256]
[1751204392397,0.3618,108140.0,108130.0,0.1849012]
[1751204392602,0.3618,108140.0,108130.0,1.18186073]
[1751204392793,0.3618,108140.0,108130.0,1.31026073]
[1751204393702,0.005,108140.0,108130.0,1.55155782]
[1751204393999,0.005,108140.0,108130.0,1.51465865]
[1751204394902,0.005,108140.0,108130.0,1.87545865]
[1751204395593,0.007,108140.0,108130.0,1.80666086]
[1751204395790,0.007,108140.0,108130.0,1.62170886]
[1751204396202,0.007,108140.0,108130.0,1.67699634]
[1751204397500,0.5918771,108160.0,108150.0,0.184867]
[1751204397705,0.2310771,108160.0,108150.0,1.06779466]
[1751204398007,0.2310771,108160.0,108150.0,0.84647799]
[1751204398302,0.2310771,108160.0,108150.0,0.809627]
[1751204398802,0.2310771,108160.0,108150.0,0.84747799]
[1751204400301,0.55444476,108160.0,108150.0,0.92088042]
[1751204400501,0.58474476,108160.0,108150.0,0.92088042]
[1751204400700,0.58474476,108160.0,108150.0,0.88878042]
[1751204401000,0.61564476,108160.0,108150.0,0.88878042]
[1751204401298,0.61664476,108160.0,108150.0,0.89178042]
[1751204402403,0.61664476,108160.0,108150.0,0.85492943]
[1751204402703,1.86077242,108160.0,108150.0,0.07740243]
[1751204403003,2.40649242,108160.0,108150.0,0.07740243]
[1751204406504,2.08312476,108160.0,108150.0,0.07740243]
[1751204406707,1.89820476,108160.0,108150.0,0.07740243]
[1751204411913,1.89820476,108160.0,108150.0,0.004]
[1751204413617,1.89820476,108160.0,108150.0,0.07937198]
[1751204417811,1.89820476,108160.0,108150.0,0.004]
[1751204418312,1.33824476,108160.0,108150.0,0.004]
[1751204418515,2.02720476,108160.0,108150.0,0.004]
[1751204422617,2.02720476,108160.0,108150.0,0.04085099]
[1751204423519,2.02720476,108160.0,108150.0,0.004]
[1751204431219,2.02720476,108160.0,108150.0,0.0357]
[1751204435824,2.35048746,108160.0,108150.0,0.0357]
[1751204436622,2.38348746,108160.0,108150.0,0.0357]
[1751204440930,1.66188746,108160.0,108150.0,0.0357]
[1751204441133,2.38348746,108160.0,108150.0,0.0357]
[1751204443534,1.82344746,108160.0,108150.0,0.0357]
[1751204443737,2.38288746,108160.0,108150.0,0.0357]
[1751204475354,2.38288746,108160.0,108150.0,0.07255099]
[1751204476350,2.25396746,108160.0,108150.0,0.07255099]
[1751204479659,2.25396746,108160.0,108150.0,0.0357]
[1751204479854,1.60032746,108160.0,108150.0,0.54389198]
[1751204480053,1.83604228,108160.0,108150.0,0.70031946]
[1751204480254,1.27700228,108160.0,108150.0,0.70031946]
[1751204480953,1.04592518,108160.0,108150.0,0.70031946]
[1751204481255,1.23077488,108160.0,108150.0,0.66346847]
[1751204482260,1.23077488,108160.0,108150.0,0.70042865]
[1751204482460,1.23077488,108160.0,108150.0,0.66346847]
[1751204484358,1.23077488,108160.0,108150.0,0.70041682]
[1751204486064,1.23077488,108160.0,108150.0,0.66346847]
[1751204486558,0.3618,108160.0,108150.0,0.66346847]
[1751204486762,0.3618,108160.0,108150.0,1.22678847]
[1751204487162,0.3618,108160.0,108150.0,0.97678847]
[1751204488564,0.3618,108160.0,108150.0,0.92151198]
[1751204490263,0.3618,108160.0,108150.0,0.97686816]
[1751204490566,0.3618,108160.0,108150.0,0.92151198]
[1751204490966,0.3618,108160.0,108150.0,0.99544151]
[1751204491367,0.001,108160.0,108150.0,1.35624151]
[1751204491567,0.001,108160.0,108150.0,1.28231198]
[1751204492165,0.001,108160.0,108150.0,1.60563716]
[1751204492361,0.001,108170.0,108160.0,0.1848497]
[1751204492566,0.001,108170.0,108160.0,1.57797749]
[1751204493463,0.001,108170.0,108160.0,1.76288149]
[1751204493769,0.001,108170.0,108160.0,2.33679452]
[1751204494170,0.001,108170.0,108160.0,2.0958342]
[1751204494867,0.001,108170.0,108160.0,1.08838384]
[1751204495068,0.002,108170.0,108160.0,2.0988342]
[1751204495268,0.002,108170.0,108160.0,2.11743327]
[1751204498276,0.002,108170.0,108160.0,2.24575327]
[1751204499271,0.002,108170.0,108160.0,2.17182374]
[1751204499671,0.002,108170.0,108160.0,2.22707664]
[1751204501771,0.002,108170.0,108160.0,1.90375146]
[1751204501976,0.002,108170.0,108160.0,2.22707664]
[1751204502270,0.002,108170.0,108160.0,1.53979664]
[1751204502574,0.002,108170.0,108160.0,2.22703664]
[1751204503766,0.002,108170.0,108160.0,2.04213264]
[1751204506678,0.002,108170.0,108160.0,2.05658069]
[1751204507575,0.002,108170.0,108160.0,1.69578069]
[1751204507770,0.002,108170.0,108160.0,2.05658069]
[1751204508875,0.002,108170.0,108160.0,2.07525732]
[1751204510176,0.002,108170.0,108160.0,2.05662098]
[1751204512479,0.002,108170.0,108160.0,2.00132779]
[1751204517784,0.0945,108180.0,108170.0,0.1848326]
[1751204517986,0.0945,108180.0,108170.0,0.65873536]
[1751204518486,0.3608,108190.0,108180.0,0.1848155]
[1751204518685,0.0949,108190.0,108180.0,1.46006085]
[1751204518892,0.0949,108190.0,108180.0,1.58842085]
[1751204519092,0.0949,108190.0,108180.0,1.92673391]
[1751204519492,0.0949,108190.0,108180.0,2.00066344]
[1751204519895,0.0949,108190.0,108180.0,1.92673391]
[1751204520088,0.0949,108190.0,108180.0,1.98212252]
[1751204520290,0.0949,108190.0,108180.0,2.04812252]
[1751204520491,0.0318,108190.0,108180.0,1.41803451]
[1751204520695,0.0318,108190.0,108180.0,2.06468487]
[1751204521191,0.0318,108190.0,108180.0,2.00929626]
[1751204522995,0.74919934,108200.0,108190.0,0.1847984]
[1751204523198,0.78149934,108200.0,108190.0,0.60046883]
[1751204523392,0.78149934,108200.0,108190.0,0.56353073]
[1751204523894,0.78149934,108200.0,108190.0,0.57797668]
[1751204524094,0.78549934,108200.0,108190.0,0.56453073]
[1751204524302,0.78549934,108200.0,108190.0,0.57897668]
[1751204524491,0.78549934,108200.0,108190.0,0.57897662]
[1751204525394,0.36737416,108200.0,108190.0,0.57897662]
[1751204525594,0.36737416,108200.0,108190.0,0.28585144]
[1751204525795,0.36737416,108200.0,108190.0,0.67347662]
[1751204525993,0.00657416,108200.0,108190.0,0.67347662]
[1751204526190,0.01157416,108200.0,108190.0,0.97986947]
[1751204526398,0.04217416,108200.0,108190.0,0.97986947]
[1751204526600,0.04217416,108200.0,108190.0,0.29574429]
[1751204526801,0.36549934,108200.0,108190.0,0.58776947]
[1751204526997,0.42909934,108200.0,108190.0,0.58776947]
[1751204527197,0.42909934,108200.0,108190.0,0.64315177]
[1751204528902,0.10577416,108200.0,108190.0,0.64315177]
[1751204529205,0.42909934,108200.0,108190.0,0.64315177]
[1751204531606,0.42909934,108200.0,108190.0,0.61015177]
[1751204532107,0.42909934,108200.0,108190.0,1.29715177]
[1751204532408,0.42909934,108200.0,108190.0,1.26695177]
[1751204532909,0.42909934,108200.0,108190.0,1.21156947]
[1751204534308,0.10577416,108200.0,108190.0,1.21156947]
[1751204534510,0.42909934,108200.0,108190.0,1.24306947]
[1751204534805,0.10577416,108200.0,108190.0,1.24306947]
[1751204535012,0.42909934,108200.0,108190.0,1.24306947]
[1751204535409,0.42909934,108200.0,108190.0,0.91974429]
[1751204535608,0.42909934,108200.0,108190.0,1.24306947]
[1751204536913,0.01157416,108200.0,108190.0,1.316999]
[1751204537214,0.33489934,108200.0,108190.0,1.380399]
[1751204538509,0.33489934,108200.0,108190.0,1.05707382]
[1751204538708,0.36739934,108200.0,108190.0,1.380399]
[1751204541413,0.04407416,108200.0,108190.0,1.380399]
[1751204542514,0.36739934,108200.0,108190.0,1.36182626]
[1751204543416,0.36739934,108200.0,108190.0,1.30646947]
[1751204544014,0.04407416,108200.0,108190.0,1.30646947]
[1751204544214,0.36739934,108200.0,108190.0,1.30646947]
[1751204546421,0.36739934,108200.0,108190.0,1.380399]
[1751204546923,0.36739934,108200.0,108190.0,1.38039762]
[1751204548825,0.36739934,108200.0,108190.0,1.38027762]
[1751204549324,0.04407416,108200.0,108190.0,1.38027762]
[1751204549530,0.36739934,108200.0,108190.0,1.38027762]
[1751204550728,0.36739934,108200.0,108190.0,0.69339762]
[1751204551028,0.36739934,108200.0,108190.0,1.38027762]
[1751204551830,0.04407416,108200.0,108190.0,1.38027762]
[1751204552030,0.36739934,108200.0,108190.0,1.38027762]
[1751204554123,0.36739934,108200.0,108190.0,1.05695244]
[1751204554331,1.23630592,108200.0,108190.0,0.21865404]
[1751204554528,1.29970592,108200.0,108190.0,0.75984301]
[1751204554722,1.29970592,108200.0,108190.0,0.07187998]
[1751204555028,1.29970592,108200.0,108190.0,0.81527848]
[1751204557532,1.29970592,108200.0,108190.0,0.25667848]
[1751204557727,1.29970592,108200.0,108190.0,0.81527848]
[1751204557927,1.29970592,108200.0,108190.0,0.75984301]
[1751204558530,1.29970592,108200.0,108190.0,0.81527829]
[1751204558925,1.29970592,108200.0,108190.0,0.80083378]
[1751204559132,1.29970592,108200.0,108190.0,0.8152794]
[1751204559531,1.29970592,108200.0,108190.0,0.75984412]
[1751204560133,1.29970592,108200.0,108190.0,0.81528003]
[1751204575540,1.29970592,108200.0,108190.0,0.80083441]
[1751204575944,0.93890592,108200.0,108190.0,0.80083441]
[1751204576146,1.29970592,108200.0,108190.0,0.80083441]
[1751204577147,0.65305556,108200.0,108190.0,1.15595959]
[1751204577444,0.88048074,108200.0,108190.0,1.15595959]
[1751204577645,0.88048074,108200.0,108190.0,1.21925959]
[1751204580747,0.88048074,108200.0,108190.0,1.16382368]
[1751204580950,0.88048074,108200.0,108190.0,1.17826926]
[1751204582248,0.88048074,108200.0,108190.0,1.25218381]
[1751204583951,0.55715556,108200.0,108190.0,0.92885863]
[1751204584148,0.88048074,108200.0,108190.0,1.25218381]
[1751204585651,0.88048074,108200.0,108190.0,1.38046381]
[1751204588257,0.88048074,108200.0,108190.0,1.38046348]
[1751204589056,0.88048074,108200.0,108190.0,0.69358348]
[1751204589258,1.20380592,108200.0,108190.0,1.38038348]
[1751204589554,0.88048074,108200.0,108190.0,1.38038348]
[1751204590254,1.20380592,108200.0,108190.0,1.38038348]
[1751204590456,1.20380592,108200.0,108190.0,1.25210348]
[1751204595862,0.88048074,108200.0,108190.0,1.25210348]
[1751204599362,0.88048074,108200.0,108190.0,1.17818893]
[1751204600264,0.91058074,108200.0,108190.0,1.17818893]
[1751204602558,0.58725556,108200.0,108190.0,1.25210348]
[1751204602754,0.91058074,108200.0,108190.0,1.25210348]
[1751204605766,0.91058074,108200.0,108190.0,0.69358348]
[1751204606368,0.91058074,108200.0,108190.0,1.25206348]
[1751204607372,0.91058074,108200.0,108190.0,1.25206345]
[1751204608272,0.58725556,108200.0,108190.0,1.25206345]
[1751204608472,0.91058074,108200.0,108190.0,1.25206345]
[1751204614379,0.91058074,108200.0,108190.0,1.26872507]
[1751204617777,0.91058074,108200.0,108190.0,1.26852017]
[1751204618876,0.91058074,108200.0,108190.0,0.94519499]
[1751204619082,0.91058074,108200.0,108190.0,1.26852017]
[1751204619286,0.91058074,108200.0,108190.0,1.26852016]
[1751204622881,1.23390592,108200.0,108190.0,1.26852016]
[1751204624776,0.91058074,108200.0,108190.0,1.26852016]
[1751204629583,0.88048074,108200.0,108190.0,1.26852016]
[1751204633790,0.88048074,108200.0,108190.0,0.94519498]
[1751204633990,0.88048074,108200.0,108190.0,1.26852016]
[1751204634192,0.91258074,108200.0,108190.0,1.26852016]
[1751204634392,0.58925556,108200.0,108190.0,1.26852016]
[1751204634692,0.91258074,108200.0,108190.0,1.26852016]
[1751204635184,0.91258074,108200.0,108190.0,0.71004016]
[1751204635492,0.91258074,108200.0,108190.0,1.26840016]
[1751204638292,0.88048074,108200.0,108190.0,1.26840016]
[1751204639992,0.55715556,108200.0,108190.0,1.26840016]
[1751204640195,0.01157416,108200.0,108190.0,0.87116043]
[1751204640390,0.19635546,108200.0,108190.0,1.19448561]
[1751204642394,0.01157416,108200.0,108190.0,1.19480874]
[1751204642584,0.01157416,108200.0,108190.0,1.26872329]
[1751204642790,0.19635546,108200.0,108190.0,1.26872329]
[1751204643599,0.01157416,108200.0,108190.0,1.26872329]
[1751204643897,0.19635546,108200.0,108190.0,1.26872329]
[1751204644098,0.01157416,108200.0,108190.0,1.26872329]
[1751204644797,0.01157416,108200.0,108190.0,1.59204847]
[1751204645099,0.01157416,108200.0,108190.0,1.26872329]
[1751204645397,0.01157416,108200.0,108190.0,1.39688329]
[1751204645598,0.01157416,108200.0,108190.0,1.72020847]
[1751204645799,0.01157416,108200.0,108190.0,1.73849584]
[1751204646098,0.01157416,108200.0,108190.0,1.41517066]
[1751204646699,0.01157416,108200.0,108190.0,1.73849584]
[1751204649906,0.62381426,108220.0,108210.0,0.50808928]
[1751204650108,0.62381426,108220.0,108210.0,1.13621937]
[1751204650305,0.62381426,108220.0,108210.0,1.23231937]
[1751204650697,0.94713944,108220.0,108210.0,1.23231937]
[1751204651010,0.60031426,108220.0,108210.0,1.26883224]
[1751204651614,0.60031426,108220.0,108210.0,1.19495907]
[1751204651908,0.59931426,108220.0,108210.0,1.19495907]
[1751204652109,0.59931426,108220.0,108210.0,1.26883224]
[1751204652417,0.59931426,108220.0,108210.0,1.34328323]
[1751204652607,0.59931426,108220.0,108210.0,1.35228316]
[1751204652809,0.60431426,108220.0,108210.0,1.35328316]
[1751204653211,0.60431426,108220.0,108210.0,1.27940999]
[1751204653512,0.59931426,108220.0,108210.0,1.35228316]
[1751204653811,0.91763944,108220.0,108210.0,1.35128316]
[1751204655212,0.91763944,108220.0,108210.0,1.27740999]
[1751204656712,0.94813944,108220.0,108210.0,1.27740999]
[1751204657724,0.94813944,108220.0,108210.0,1.39112478]
[1751204658211,0.94813944,108220.0,108210.0,1.4464425]
[1751204659619,0.58733944,108220.0,108210.0,1.4464425]
[1751204659820,0.94813944,108220.0,108210.0,1.4464425]
[1751204661816,0.57862736,108220.0,108210.0,1.4464425]
[1751204662115,0.36337416,108220.0,108210.0,1.4464425]
[1751204663416,0.36337416,108220.0,108210.0,1.76976768]
[1751204663618,0.00157416,108240.0,108210.0,1.93667316]
[1751204663825,0.03167416,108240.0,108230.0,0.86885528]
[1751204664014,0.21638726,108240.0,108230.0,1.45951528]
[1751204664215,0.53971244,108240.0,108230.0,1.528189]
[1751204664520,0.03167416,108240.0,108230.0,1.54512468]
[1751204664728,0.21638716,108240.0,108230.0,1.54512468]
[1751204665327,0.21638716,108240.0,108230.0,1.56356154]
[1751204665823,0.18628716,108240.0,108230.0,1.70608094]
[1751204666021,0.18728716,108240.0,108230.0,1.70608094]
[1751204666222,0.18728716,108240.0,108230.0,1.74293338]
[1751204666521,0.18728716,108240.0,108230.0,1.70608094]
[1751204666823,0.18828716,108240.0,108230.0,1.70608094]
[1751204667223,0.18828716,108240.0,108230.0,1.74292865]
[1751204667522,0.18828716,108240.0,108230.0,1.70608094]
[1751204667723,0.00357416,108240.0,108230.0,1.70608094]
[1751204669319,0.00357416,108240.0,108230.0,1.74292053]
[1751204670626,0.00357416,108240.0,108230.0,1.77372053]
[1751204672225,0.00357416,108240.0,108230.0,1.37608094]
[1751204672423,0.00357416,108240.0,108230.0,2.09768094]
[1751204672724,0.18828716,108240.0,108230.0,2.09768094]
[1751204673228,0.32689934,108240.0,108230.0,2.07920562]
[1751204673822,0.00357416,108240.0,108230.0,2.07920562]
[1751204674327,0.18828716,108240.0,108230.0,2.07920562]
[1751204676130,0.18828716,108240.0,108230.0,1.71840562]
[1751204676331,0.00357416,108240.0,108230.0,2.07920562]
[1751204676628,0.32689934,108240.0,108230.0,2.07920562]
[1751204676929,0.00357416,108240.0,108230.0,2.07920562]
[1751204678327,0.00357416,108240.0,108230.0,2.04237036]
[1751204679217,0.00357416,108240.0,108230.0,2.09768094]
[1751204679726,0.00357416,108240.0,108230.0,2.0972027]
[1751204679923,0.18828716,108240.0,108230.0,2.0972027]
[1751204680122,0.00357416,108240.0,108230.0,2.0972027]
[1751204680923,0.00357416,108240.0,108230.0,2.11576529]
[1751204681526,0.00357416,108240.0,108230.0,2.04189212]
[1751204681728,0.00357416,108240.0,108230.0,2.11576529]
[1751204682930,0.00357416,108240.0,108230.0,2.04173212]
[1751204684126,0.18828716,108240.0,108230.0,1.35579941]
[1751204684326,0.51161234,108240.0,108230.0,2.0971211]
[1751204684524,0.83493752,108240.0,108230.0,0.25262901]
[1751204684726,1.5816627,108240.0,108230.0,0.1231806]
[1751204684924,2.0164467,108240.0,108230.0,0.10657587]
[1751204685124,0.1847301,108230.0,108220.0,0.05528169]
[1751204685432,0.1847471,108220.0,108210.0,0.07445099]
[1751204685728,0.1847642,108210.0,108200.0,0.01678958]
[1751204685932,1.28524468,108210.0,108200.0,0.01678958]
[1751204686620,1.84320468,108210.0,108200.0,0.01678958]
[1751204686824,0.1847812,108200.0,108190.0,0.75898963]
[1751204687028,0.56982144,108200.0,108190.0,0.68511646]
[1751204688033,0.56982144,108200.0,108190.0,0.76082592]
[1751204689239,0.56982144,108200.0,108190.0,0.76482592]
[1751204689432,0.57082144,108200.0,108190.0,0.77182592]
[1751204692437,0.57082144,108200.0,108190.0,0.72562692]
[1751204695941,0.2477812,108200.0,108190.0,0.72562692]
[1751204696245,0.2477812,108200.0,108190.0,1.04866716]
[1751204696246,0.1857812,108200.0,108190.0,1.04866716]
[1751204696538,0.1857812,108200.0,108190.0,1.11146716]
[1751204697337,0.1857812,108200.0,108190.0,1.12591137]
[1751204697930,0.001,108200.0,108190.0,1.12591137]
[1751204700044,0.1847576,108220.0,108210.0,0.1847642]
[1751204700242,0.1847576,108220.0,108210.0,1.42676444]
[1751204700437,0.50779784,108220.0,108210.0,0.2147642]
[1751204700744,0.53959784,108220.0,108210.0,0.2147642]
[1751204701039,0.57069784,108220.0,108210.0,0.5765642]
[1751204701443,0.57169784,108220.0,108210.0,0.5795641]
[1751204701634,0.2486576,108220.0,108210.0,0.5495641]
[1751204701834,0.57169784,108220.0,108210.0,0.5495641]
[1751204702340,0.2486576,108220.0,108210.0,0.5828641]
[1751204702538,0.2486576,108220.0,108210.0,0.90590434]
[1751204702743,0.2486576,108220.0,108210.0,0.5828641]
[1751204704441,0.1857576,108220.0,108210.0,0.90590434]
[1751204704642,0.001,108220.0,108210.0,0.93870434]
[1751204704844,0.1857471,108220.0,108210.0,0.93870434]
[1751204705240,0.1857471,108220.0,108210.0,0.99384989]
[1751204705444,0.1857471,108220.0,108210.0,1.00289975]
[1751204705943,0.1857471,108220.0,108210.0,0.67080965]
[1751204706248,0.1857471,108220.0,108210.0,0.99384989]
[1751204708446,0.001,108220.0,108210.0,1.48268989]
[1751204710148,0.001,108220.0,108210.0,1.80573013]